[Event "MCR rapid mládeže 2023 U16"]
[Site "Harachov, Czech Republic"]
[Date "2023.09.09"]
[Round "4.7"]
[White "Zrubek, Dan"]
[Black "Vana, Jan"]
[Result "0-1"]
[TimeControl "20min+5s/move"]
[WhiteElo "1571"]
[BlackElo "1681"]

1. e4 {[%clk 00:20:05]} {[%emt 01:06:29]} c5 {[%clk 00:20:07]} {[%emt
00:00:06]} 2. Nf3 {[%clk 00:20:09]} {[%emt 00:00:01]} Nc6 {[%clk 00:20:11]} 3.
d4 {[%clk 00:20:10]} {[%emt 00:00:04]} cxd4 {[%clk 00:20:15]} 4. Nxd4 {[%clk
00:20:14]} {[%emt 00:00:01]} Nf6 {[%clk 00:20:20]} 5. Nc3 {[%clk 00:20:15]}
{[%emt 00:00:04]} e5 {[%clk 00:20:24]} 6. Ndb5 {[%clk 00:20:16]} {[%emt
00:00:03]} d6 {[%clk 00:20:28]} 7. Nd5 {[%clk 00:20:13]} {[%emt 00:00:09]} Nxd5
{[%clk 00:20:31]} {[%emt 00:00:02]} 8. exd5 {[%clk 00:20:16]} {[%emt 00:00:02]}
Nb8 {[%clk 00:20:35]} 9. c4 {[%clk 00:20:18]} {[%emt 00:00:04]} Be7 {[%clk
00:20:38]} 10. Be2 {[%clk 00:20:17]} {[%emt 00:00:07]} O-O {[%clk 00:20:37]}
{[%emt 00:00:06]} 11. O-O {[%clk 00:20:12]} {[%emt 00:00:10]} a6 {[%clk
00:20:42]} 12. Nc3 {[%clk 00:20:14]} {[%emt 00:00:03]} f5 {[%clk 00:20:46]}
{[%emt 00:00:01]} 13. f4 {[%clk 00:19:39]} {[%emt 00:00:39]} Bf6 {[%clk
00:20:17]} {[%emt 00:00:34]} 14. Kh1 {[%clk 00:18:33]} {[%emt 00:01:12]} Nd7
{[%clk 00:19:55]} {[%emt 00:00:26]} 15. Qc2 {[%clk 00:18:01]} {[%emt 00:00:38]}
g6 {[%clk 00:19:57]} {[%emt 00:00:04]} 16. Be3 {[%clk 00:17:44]} {[%emt
00:00:21]} exf4 {[%clk 00:19:45]} {[%emt 00:00:18]} 17. Bxf4 {[%clk 00:17:39]}
{[%emt 00:00:10]} Be5 {[%clk 00:19:49]} 18. Bxe5 {[%clk 00:15:50]} {[%emt
00:01:55]} Nxe5 {[%clk 00:19:51]} {[%emt 00:00:02]} 19. Rac1 {[%clk 00:15:28]}
{[%emt 00:00:26]} Bd7 {[%clk 00:19:04]} {[%emt 00:00:53]} 20. b4 {[%clk
00:13:10]} {[%emt 00:02:24]} Rc8 {[%clk 00:17:29]} {[%emt 00:01:39]} 21. Qb3
{[%clk 00:12:34]} {[%emt 00:00:39]} Qh4 {[%clk 00:10:54]} {[%emt 00:06:43]} 22.
c5 {[%clk 00:08:24]} {[%emt 00:04:15]} Ng4 {[%clk 00:08:06]} {[%emt 00:02:52]}
23. Bxg4 {[%clk 00:04:34]} {[%emt 00:03:55]} fxg4 {[%clk 00:05:29]} {[%emt
00:02:42]} 24. Ne4 {[%clk 00:03:39]} {[%emt 00:01:00]} Rxf1+ {[%clk 00:01:28]}
{[%emt 00:04:06]} 25. Rxf1 {[%clk 00:03:42]} {[%emt 00:00:03]} Rf8 {[%clk
00:01:32]} {[%emt 00:00:01]} 26. Rxf8+ {[%clk 00:03:11]} {[%emt 00:00:35]} Kxf8
{[%clk 00:01:36]} 27. Qg3 {[%clk 00:01:13]} {[%emt 00:02:02]} Qxg3 {[%clk
00:01:05]} {[%emt 00:00:39]} 28. Nxg3 {[%clk 00:00:09]} {[%emt 00:01:09]} dxc5
{[%clk 00:00:16]} {[%emt 00:00:54]} 29. bxc5 {[%clk 00:00:10]} {[%emt
00:00:03]} Ke7 {[%clk 00:00:20]} 30. Kg1 {[%clk 00:00:08]} {[%emt 00:00:08]}
Bb5 {[%clk 00:00:20]} {[%emt 00:00:06]} 31. d6+ {[%clk 00:00:08]} {[%emt
00:00:05]} Ke6 {[%clk 00:00:09]} {[%emt 00:00:16]} 32. Ne4 {[%clk 00:00:09]}
{[%emt 00:00:04]} h6 {[%clk 00:00:13]} {[%emt 00:00:01]} 33. Nc3 {[%clk
00:00:09]} {[%emt 00:00:04]} Bc6 {[%clk 00:00:07]} {[%emt 00:00:11]} 34. Kf2
{[%clk 00:00:08]} {[%emt 00:00:06]} Ke5 {[%clk 00:00:12]} {[%emt 00:00:01]} 35.
Kg3 {[%clk 00:00:07]} {[%emt 00:00:06]} Kd4 {[%clk 00:00:08]} {[%emt 00:00:08]}
36. Ne2+ {[%clk 00:00:09]} {[%emt 00:00:03]} Kxc5 {[%clk 00:00:11]} {[%emt
00:00:02]} 37. Kxg4 {[%clk 00:00:12]} {[%emt 00:00:02]} Kxd6 {[%clk 00:00:15]}
{[%emt 00:00:01]} 38. g3 {[%clk 00:00:13]} {[%emt 00:00:04]} Be4 {[%clk
00:00:07]} {[%emt 00:00:13]} 39. Kf4 {[%clk 00:00:13]} {[%emt 00:00:05]} Bb1
{[%clk 00:00:10]} {[%emt 00:00:02]} 40. Nc3 {[%clk 00:00:17]} {[%emt 00:00:02]}
Bc2 {[%clk 00:00:14]} 41. Ke3 {[%clk 00:00:15]} {[%emt 00:00:06]} b5 {[%clk
00:00:18]} {[%emt 00:00:01]} 42. Kd2 {[%clk 00:00:13]} {[%emt 00:00:07]} Bf5
{[%clk 00:00:22]} {[%emt 00:00:01]} 43. Kc1 {[%clk 00:00:07]} {[%emt 00:00:11]}
Kc5 {[%clk 00:00:25]} {[%emt 00:00:02]} 44. Kb2 {[%clk 00:00:10]} {[%emt
00:00:02]} Kd4 {[%clk 00:00:23]} {[%emt 00:00:06]} 45. Nd1 {[%clk 00:00:10]}
{[%emt 00:00:05]} a5 {[%clk 00:00:15]} {[%emt 00:00:13]} 46. Kc1 {[%clk
00:00:09]} {[%emt 00:00:06]} Kd3 {[%clk 00:00:12]} {[%emt 00:00:09]} 47. g4
{[%clk 00:00:07]} {[%emt 00:00:08]} Be6 {[%clk 00:00:11]} {[%emt 00:00:05]} 48.
Nf2+ {[%clk 00:00:07]} {[%emt 00:00:05]} Ke3 {[%clk 00:00:09]} {[%emt
00:00:07]} 49. Nd1+ {[%clk 00:00:08]} {[%emt 00:00:04]} Kf3 {[%clk 00:00:12]}
{[%emt 00:00:02]} 50. h3 {[%clk 00:00:09]} {[%emt 00:00:03]} Bxa2 {[%clk
00:00:14]} {[%emt 00:00:04]} 51. Nc3 {[%clk 00:00:12]} {[%emt 00:00:02]} Bc4
{[%clk 00:00:16]} {[%emt 00:00:03]} 52. Kd2 {[%clk 00:00:10]} Kg3 {[%clk
00:00:16]} 53. Ke3 {[%clk 00:00:14]} {[%emt 00:00:10]} a4 {[%clk 00:00:12]}
{[%emt 00:00:12]} 54. Ne4 {[%clk 00:00:06]} {[%emt 00:00:13]} Kg2 {[%clk
00:00:10]} {[%emt 00:00:07]} 55. h4 {[%clk 00:00:07]} {[%emt 00:00:05]} a3
{[%clk 00:00:12]} {[%emt 00:00:03]} 56. Nc3 {[%emt 00:00:09]} a2 {[%clk
00:00:12]} {[%emt 00:00:02]} 57. Nxa2 {[%clk 00:00:10]} {[%emt 00:00:01]} Bxa2
{[%clk 00:00:16]} 58. Kf4 {[%clk 00:00:12]} {[%emt 00:00:03]} b4 {[%clk
00:00:19]} {[%emt 00:00:03]} 0-1

[Event "MCR rapid mládeže 2023 U16"]
[Site "Harachov, Czech Republic"]
[Date "2023.09.09"]
[Round "4.8"]
[White "Zemek, Antonin"]
[Black "Martirosyan, David"]
[Result "0-1"]
[TimeControl "20min+5s/move"]
[WhiteElo "1464"]
[BlackElo "1861"]

1. Nf3 {[%clk 00:20:05]} {[%emt 00:00:05]} d5 {[%clk 00:20:06]} {[%emt
00:00:05]} 2. b3 {[%clk 00:20:09]} {[%emt 00:00:01]} Bf5 {[%clk 00:20:08]}
{[%emt 00:00:03]} 3. d3 {[%clk 00:20:12]} {[%emt 00:00:02]} e6 {[%clk
00:20:07]} {[%emt 00:00:05]} 4. Bb2 {[%clk 00:20:15]} {[%emt 00:00:02]} h6
{[%clk 00:20:05]} {[%emt 00:00:07]} 5. Nbd2 {[%clk 00:19:43]} {[%emt 00:00:37]}
Nf6 {[%clk 00:20:08]} {[%emt 00:00:03]} 6. c4 {[%clk 00:19:33]} {[%emt
00:00:15]} Nbd7 {[%clk 00:19:31]} {[%emt 00:00:41]} 7. g3 {[%clk 00:18:49]}
{[%emt 00:00:50]} Be7 {[%clk 00:19:25]} {[%emt 00:00:11]} 8. Bg2 {[%clk
00:17:02]} {[%emt 00:01:52]} O-O {[%clk 00:19:27]} {[%emt 00:00:03]} 9. O-O
{[%clk 00:16:55]} {[%emt 00:00:11]} c6 {[%clk 00:19:11]} {[%emt 00:00:22]} 10.
Re1 {[%clk 00:14:44]} {[%emt 00:02:15]} Bh7 {[%clk 00:17:52]} {[%emt 00:01:25]}
11. a3 {[%clk 00:13:12]} {[%emt 00:01:37]} a5 {[%clk 00:17:26]} {[%emt
00:00:31]} 12. Qc2 {[%clk 00:11:37]} {[%emt 00:01:40]} Qb6 {[%clk 00:14:04]}
{[%emt 00:03:27]} 13. Bd4 {[%clk 00:10:11]} {[%emt 00:01:31]} Bc5 {[%clk
00:10:57]} {[%emt 00:03:12]} 14. Qc3 {[%clk 00:08:59]} {[%emt 00:01:17]} Bxd4
{[%clk 00:09:35]} {[%emt 00:01:26]} 15. Nxd4 {[%clk 00:09:02]} {[%emt
00:00:03]} e5 {[%clk 00:09:28]} {[%emt 00:00:12]} 16. N4f3 {[%clk 00:09:01]}
{[%emt 00:00:05]} d4 {[%clk 00:08:33]} {[%emt 00:01:02]} 17. Qb2 {[%clk
00:09:04]} {[%emt 00:00:01]} c5 {[%clk 00:07:39]} {[%emt 00:00:59]} 18. h3
{[%clk 00:07:35]} {[%emt 00:01:33]} Rfe8 {[%clk 00:07:31]} {[%emt 00:00:13]} 19.
Nh2 {[%clk 00:07:08]} {[%emt 00:00:32]} e4 {[%clk 00:06:47]} {[%emt 00:00:50]}
20. dxe4 {[%clk 00:06:56]} {[%emt 00:00:16]} Nxe4 {[%clk 00:06:50]} {[%emt
00:00:02]} 21. Nxe4 {[%clk 00:06:58]} {[%emt 00:00:03]} Bxe4 {[%clk 00:06:54]}
{[%emt 00:00:02]} 22. Bxe4 {[%clk 00:06:43]} {[%emt 00:00:20]} Rxe4 {[%clk
00:06:57]} {[%emt 00:00:01]} 23. f3 {[%clk 00:05:47]} {[%emt 00:01:01]} Re3
{[%clk 00:06:12]} {[%emt 00:00:51]} 24. Rab1 {[%clk 00:05:14]} {[%emt
00:00:37]} Rae8 {[%clk 00:05:33]} {[%emt 00:00:44]} 25. Ng4 {[%clk 00:05:05]}
{[%emt 00:00:14]} R3e6 {[%clk 00:05:01]} {[%emt 00:00:37]} 26. Kf2 {[%clk
00:04:41]} {[%emt 00:00:28]} Ne5 {[%clk 00:04:30]} {[%emt 00:00:37]} 27. Nxe5
{[%clk 00:04:43]} {[%emt 00:00:03]} Rxe5 {[%clk 00:04:34]} {[%emt 00:00:01]} 28.
Qd2 {[%clk 00:04:30]} {[%emt 00:00:17]} Re3 {[%clk 00:04:11]} {[%emt 00:00:29]}
29. Qc2 {[%clk 00:02:56]} {[%emt 00:01:39]} Qe6 {[%clk 00:03:55]} {[%emt
00:00:20]} 30. g4 {[%clk 00:02:52]} {[%emt 00:00:09]} Qe5 {[%clk 00:03:54]}
{[%emt 00:00:07]} 31. Kg2 {[%clk 00:02:47]} {[%emt 00:00:09]} Rxe2+ {[%clk
00:03:56]} {[%emt 00:00:04]} 32. Rxe2 {[%clk 00:02:49]} {[%emt 00:00:03]} Qxe2+
{[%clk 00:04:00]} 33. Qxe2 {[%clk 00:02:52]} {[%emt 00:00:02]} Rxe2+ {[%clk
00:04:04]} 34. Kg3 {[%clk 00:02:52]} {[%emt 00:00:06]} Rc2 {[%clk 00:03:38]}
{[%emt 00:00:31]} 35. b4 {[%clk 00:02:18]} {[%emt 00:00:39]} axb4 {[%clk
00:03:29]} {[%emt 00:00:14]} 36. axb4 {[%clk 00:02:21]} {[%emt 00:00:02]} b6
{[%clk 00:03:31]} {[%emt 00:00:04]} 37. bxc5 {[%clk 00:02:01]} {[%emt
00:00:24]} bxc5 {[%clk 00:03:34]} {[%emt 00:00:02]} 38. Kf4 {[%clk 00:02:02]}
{[%emt 00:00:05]} Rxc4 {[%clk 00:03:35]} {[%emt 00:00:04]} 39. Ke4 {[%clk
00:02:05]} {[%emt 00:00:02]} Rc3 {[%clk 00:03:35]} {[%emt 00:00:05]} 40. h4
{[%clk 00:02:00]} {[%emt 00:00:09]} Kf8 {[%clk 00:03:18]} {[%emt 00:00:23]} 41.
f4 {[%clk 00:01:45]} {[%emt 00:00:20]} g6 {[%clk 00:02:50]} {[%emt 00:00:33]}
42. f5 {[%clk 00:01:21]} {[%emt 00:00:29]} Rh3 {[%clk 00:02:10]} {[%emt
00:00:45]} 43. f6 {[%clk 00:01:14]} {[%emt 00:00:12]} Ke8 {[%clk 00:01:24]}
{[%emt 00:00:51]} 44. Kd5 {[%clk 00:01:03]} {[%emt 00:00:15]} Re3 {[%clk
00:00:47]} {[%emt 00:00:42]} 45. Kxc5 {[%clk 00:00:20]} {[%emt 00:00:49]} d3
{[%clk 00:00:46]} {[%emt 00:00:06]} 46. g5 {[%clk 00:00:15]} {[%emt 00:00:10]}
hxg5 {[%clk 00:00:39]} {[%emt 00:00:12]} 47. hxg5 {[%clk 00:00:17]} {[%emt
00:00:02]} d2 {[%clk 00:00:34]} {[%emt 00:00:11]} 48. Kd6 {[%clk 00:00:16]}
{[%emt 00:00:05]} Rd3+ {[%clk 00:00:36]} {[%emt 00:00:03]} 49. Kc7 {[%clk
00:00:17]} {[%emt 00:00:04]} d1=Q {[%clk 00:00:36]} {[%emt 00:00:05]} 0-1

[Event "MCR rapid mládeže 2023 U16"]
[Site "Harachov, Czech Republic"]
[Date "2023.09.09"]
[Round "4.9"]
[White "Horkova, Tereza"]
[Black "Barteckova, Valerie"]
[Result "1/2-1/2"]
[TimeControl "20min+5s/move"]
[WhiteElo "1720"]
[BlackElo "1498"]

1. e4 {[%clk 00:20:09]} {[%emt 00:02:20]} e6 {[%clk 00:20:08]} {[%emt
00:00:03]} 2. d4 {[%clk 00:20:13]} d5 {[%clk 00:20:12]} 3. e5 {[%clk 00:20:17]}
{[%emt 00:00:02]} c5 {[%clk 00:20:17]} 4. c3 {[%clk 00:20:21]} Nc6 {[%clk
00:20:21]} {[%emt 00:00:03]} 5. Nf3 {[%clk 00:20:25]} Qb6 {[%clk 00:20:14]}
{[%emt 00:00:12]} 6. Be2 {[%clk 00:20:22]} {[%emt 00:00:06]} Bd7 {[%clk
00:19:57]} {[%emt 00:00:23]} 7. O-O {[%clk 00:20:16]} {[%emt 00:00:10]} Nh6
{[%clk 00:20:01]} {[%emt 00:00:03]} 8. dxc5 {[%clk 00:19:17]} {[%emt 00:01:03]}
Bxc5 {[%clk 00:19:47]} {[%emt 00:00:19]} 9. h3 {[%clk 00:17:34]} {[%emt
00:01:47]} Nf5 {[%clk 00:19:39]} {[%emt 00:00:13]} 10. Nbd2 {[%clk 00:17:02]}
{[%emt 00:00:37]} Ng3 {[%clk 00:16:05]} {[%emt 00:03:39]} 11. b4 {[%clk
00:16:30]} {[%emt 00:00:37]} Nxb4 {[%clk 00:14:10]} {[%emt 00:02:00]} 12. cxb4
{[%clk 00:16:29]} {[%emt 00:00:06]} Bd4 {[%clk 00:08:54]} {[%emt 00:05:21]} 13.
Rb1 {[%clk 00:10:30]} {[%emt 00:06:04]} Nxf1 {[%clk 00:07:57]} {[%emt
00:01:02]} 14. Qxf1 {[%clk 00:09:49]} {[%emt 00:00:46]} O-O {[%clk 00:07:01]}
{[%emt 00:01:01]} 15. Nb3 {[%clk 00:08:25]} {[%emt 00:01:30]} Bc3 {[%clk
00:05:40]} {[%emt 00:01:24]} 16. Be3 {[%clk 00:07:57]} {[%emt 00:00:34]} Qc7
{[%clk 00:04:39]} {[%emt 00:01:04]} 17. Nc5 {[%clk 00:07:44]} {[%emt 00:00:22]}
Bc6 {[%clk 00:03:50]} {[%emt 00:00:54]} 18. Nd3 {[%clk 00:05:47]} {[%emt
00:02:02]} Rfd8 {[%clk 00:03:27]} {[%emt 00:00:27]} 19. Qc1 {[%clk 00:05:32]}
{[%emt 00:00:21]} d4 {[%clk 00:03:03]} {[%emt 00:00:29]} 20. Bxd4 {[%clk
00:03:29]} {[%emt 00:02:08]} Bxd4 {[%clk 00:02:49]} {[%emt 00:00:18]} 21. Nxd4
{[%clk 00:03:19]} {[%emt 00:00:15]} Rxd4 {[%clk 00:02:50]} {[%emt 00:00:05]} 22.
b5 {[%clk 00:03:22]} {[%emt 00:00:02]} Qd7 {[%clk 00:00:57]} {[%emt 00:01:56]}
23. bxc6 {[%clk 00:03:18]} {[%emt 00:00:11]} Qxc6 {[%clk 00:00:58]} {[%emt
00:00:03]} 24. Qb2 {[%clk 00:02:51]} {[%emt 00:00:30]} Rd7 {[%clk 00:00:43]}
{[%emt 00:00:20]} 25. Nb4 {[%clk 00:01:42]} {[%emt 00:01:16]} Qc7 {[%clk
00:00:20]} {[%emt 00:00:21]} 26. Rc1 {[%clk 00:00:44]} {[%emt 00:01:09]} Qd8
{[%clk 00:00:22]} {[%emt 00:00:03]} 27. Qc3 {[%clk 00:00:36]} {[%emt 00:00:13]}
Rb8 {[%clk 00:00:18]} {[%emt 00:00:09]} 28. Nd3 {[%clk 00:00:31]} {[%emt
00:00:10]} Rd5 {[%clk 00:00:19]} {[%emt 00:00:04]} 29. Nb4 {[%clk 00:00:34]}
{[%emt 00:00:03]} Rd7 {[%clk 00:00:23]} 30. Nd3 {[%clk 00:00:23]} {[%emt
00:00:16]} Rd5 {[%clk 00:00:27]} 31. Nb4 {[%clk 00:00:17]} {[%emt 00:00:11]}
Rd7 {[%emt 00:00:11]} 1/2-1/2

[Event "MCR rapid mládeže 2023 U16"]
[Site "Harachov, Czech Republic"]
[Date "2023.09.09"]
[Round "4.10"]
[White "Mikesova, Lenka"]
[Black "Dorazilova, Kristyna"]
[Result "1-0"]
[TimeControl "20min+5s/move"]
[WhiteElo "1410"]
[BlackElo "1517"]

1. e4 {[%clk 00:20:07]} {[%emt 00:00:02]} b6 {[%clk 00:20:09]} {[%emt
00:00:02]} 2. d4 {[%clk 00:20:08]} {[%emt 00:00:04]} Bb7 {[%clk 00:20:14]}
{[%emt 00:00:02]} 3. Nc3 {[%clk 00:19:45]} {[%emt 00:00:26]} e6 {[%clk
00:20:17]} {[%emt 00:00:02]} 4. Nf3 {[%clk 00:19:31]} {[%emt 00:00:19]} Bb4
{[%clk 00:20:20]} {[%emt 00:00:03]} 5. Bd3 {[%clk 00:18:49]} {[%emt 00:00:46]}
Nf6 {[%emt 00:00:04]} 6. Qe2 {[%clk 00:18:11]} {[%emt 00:00:41]} c5 {[%clk
00:20:18]} {[%emt 00:00:10]} 7. dxc5 {[%clk 00:16:11]} {[%emt 00:02:06]} Bxc3+
{[%clk 00:19:03]} {[%emt 00:01:20]} 8. bxc3 {[%clk 00:16:14]} {[%emt 00:00:01]}
bxc5 {[%clk 00:19:07]} {[%emt 00:00:01]} 9. Bg5 {[%clk 00:15:32]} {[%emt
00:00:47]} h6 {[%clk 00:18:41]} {[%emt 00:00:31]} 10. Bh4 {[%clk 00:15:34]}
{[%emt 00:00:02]} g5 {[%clk 00:16:36]} {[%emt 00:02:10]} 11. Bg3 {[%clk
00:14:52]} {[%emt 00:00:47]} c4 {[%clk 00:16:39]} {[%emt 00:00:03]} 12. Bxc4
{[%clk 00:14:22]} {[%emt 00:00:35]} Nxe4 {[%clk 00:16:42]} {[%emt 00:00:02]} 13.
O-O {[%clk 00:13:39]} {[%emt 00:00:48]} Nxg3 {[%clk 00:14:28]} {[%emt
00:02:19]} 14. fxg3 {[%clk 00:13:28]} {[%emt 00:00:16]} Nc6 {[%clk 00:13:09]}
{[%emt 00:01:24]} 15. Ne5 {[%clk 00:12:45]} {[%emt 00:00:48]} O-O {[%clk
00:10:42]} {[%emt 00:02:32]} 16. Rab1 {[%clk 00:11:48]} {[%emt 00:01:02]} Qc7
{[%clk 00:10:00]} {[%emt 00:00:48]} 17. Ng4 {[%clk 00:08:32]} {[%emt 00:03:20]}
Kg7 {[%clk 00:09:46]} {[%emt 00:00:19]} 18. Nf6 {[%clk 00:07:56]} {[%emt
00:00:42]} Rab8 {[%clk 00:08:37]} {[%emt 00:01:15]} 19. Qd3 {[%clk 00:07:48]}
{[%emt 00:00:13]} Rh8 {[%clk 00:08:06]} {[%emt 00:00:36]} 20. Qxd7 {[%clk
00:07:10]} {[%emt 00:00:43]} Qc8 {[%clk 00:07:20]} {[%emt 00:00:51]} 21. Nh5+
{[%clk 00:07:06]} {[%emt 00:00:08]} 1-0

[Event "MCR rapid mládeže 2023 U16"]
[Site "Harachov, Czech Republic"]
[Date "2023.09.09"]
[Round "4.11"]
[White "Kammova, Katerina"]
[Black "Slivova, Linda"]
[Result "1-0"]
[TimeControl "20min+5s/move"]
[WhiteElo "1393"]
[BlackElo "1386"]

1. e4 {[%clk 00:20:05]} {[%emt 00:00:04]} c6 {[%clk 00:20:09]} {[%emt
00:00:02]} 2. Nf3 {[%clk 00:19:58]} {[%emt 00:00:12]} d5 {[%clk 00:20:13]}
{[%emt 00:00:02]} 3. Nc3 {[%clk 00:20:01]} {[%emt 00:00:02]} dxe4 {[%clk
00:20:11]} {[%emt 00:00:07]} 4. Nxe4 {[%clk 00:20:04]} {[%emt 00:00:02]} Nf6
{[%clk 00:20:04]} {[%emt 00:00:12]} 5. Qe2 {[%clk 00:20:05]} {[%emt 00:00:04]}
Nxe4 {[%clk 00:19:09]} {[%emt 00:01:01]} 6. Qxe4 {[%clk 00:20:07]} {[%emt
00:00:02]} Nd7 {[%clk 00:19:07]} {[%emt 00:00:07]} 7. Bc4 {[%clk 00:16:26]}
{[%emt 00:03:45]} Nf6 {[%clk 00:18:34]} {[%emt 00:00:38]} 8. Qe2 {[%clk
00:16:21]} {[%emt 00:00:10]} Bf5 {[%clk 00:17:50]} {[%emt 00:00:49]} 9. d4
{[%clk 00:15:24]} {[%emt 00:01:02]} e6 {[%clk 00:17:23]} {[%emt 00:00:32]} 10.
O-O {[%clk 00:14:28]} {[%emt 00:01:01]} Be7 {[%clk 00:17:18]} {[%emt 00:00:11]}
11. c3 {[%clk 00:13:59]} {[%emt 00:00:34]} O-O {[%clk 00:17:02]} {[%emt
00:00:20]} 12. Nh4 {[%clk 00:12:52]} {[%emt 00:01:12]} Bg4 {[%clk 00:15:24]}
{[%emt 00:01:43]} 13. Nf3 {[%clk 00:12:15]} {[%emt 00:00:41]} Nd5 {[%clk
00:13:23]} {[%emt 00:02:06]} 14. Bd3 {[%clk 00:11:09]} {[%emt 00:01:11]} Rc8
{[%clk 00:10:18]} {[%emt 00:03:11]} 15. Re1 {[%clk 00:08:56]} {[%emt 00:02:18]}
Re8 {[%clk 00:10:03]} {[%emt 00:00:20]} 16. h3 {[%clk 00:08:29]} {[%emt
00:00:32]} Bxf3 {[%clk 00:09:27]} {[%emt 00:00:41]} 17. Qxf3 {[%clk 00:08:21]}
{[%emt 00:00:13]} Nf6 {[%clk 00:08:10]} {[%emt 00:01:21]} 18. Bc2 {[%clk
00:08:00]} {[%emt 00:00:26]} c5 {[%clk 00:05:56]} {[%emt 00:02:20]} 19. dxc5
{[%clk 00:06:58]} {[%emt 00:01:07]} Qd5 {[%clk 00:04:33]} {[%emt 00:01:27]} 20.
Qxd5 {[%clk 00:04:30]} {[%emt 00:02:33]} Nxd5 {[%clk 00:04:36]} {[%emt
00:00:01]} 21. Be3 {[%clk 00:04:18]} {[%emt 00:00:18]} Bxc5 {[%clk 00:03:42]}
{[%emt 00:00:59]} 22. Bxc5 {[%clk 00:04:09]} {[%emt 00:00:14]} Rxc5 {[%clk
00:03:45]} {[%emt 00:00:01]} 23. Bb3 {[%clk 00:03:55]} {[%emt 00:00:19]} Nf4
{[%clk 00:02:24]} {[%emt 00:01:26]} 24. Rad1 {[%clk 00:03:45]} {[%emt
00:00:15]} Rg5 {[%clk 00:01:48]} {[%emt 00:00:41]} 25. g3 {[%clk 00:02:47]}
{[%emt 00:01:03]} Nxh3+ {[%clk 00:01:05]} {[%emt 00:00:48]} 26. Kg2 {[%clk
00:02:42]} {[%emt 00:00:10]} Nf4+ {[%clk 00:01:07]} {[%emt 00:00:03]} 27. Kf3
{[%clk 00:02:42]} {[%emt 00:00:05]} Ng6 {[%clk 00:00:56]} {[%emt 00:00:16]} 28.
Kg2 {[%clk 00:02:13]} {[%emt 00:00:34]} Nf4+ {[%clk 00:00:36]} {[%emt
00:00:25]} 29. Kf3 {[%clk 00:02:06]} {[%emt 00:00:12]} Nd5 {[%clk 00:00:38]}
{[%emt 00:00:03]} 30. Bxd5 {[%clk 00:02:08]} {[%emt 00:00:02]} Rf5+ {[%clk
00:00:23]} {[%emt 00:00:21]} 31. Kg2 {[%clk 00:02:11]} {[%emt 00:00:03]} Kf8
{[%clk 00:00:14]} {[%emt 00:00:13]} 32. Bxb7 {[%clk 00:02:00]} {[%emt
00:00:15]} Ra5 {[%clk 00:00:16]} {[%emt 00:00:02]} 33. a4 {[%clk 00:01:30]}
{[%emt 00:00:36]} Rb8 {[%clk 00:00:18]} {[%emt 00:00:03]} 34. b4 {[%clk
00:01:26]} {[%emt 00:00:09]} Rxa4 {[%clk 00:00:11]} {[%emt 00:00:13]} 35. Bc6
{[%clk 00:01:30]} Ra3 {[%clk 00:00:13]} {[%emt 00:00:03]} 36. Rc1 {[%clk
00:01:20]} {[%emt 00:00:15]} Rc8 {[%clk 00:00:15]} {[%emt 00:00:03]} 37. b5
{[%clk 00:01:20]} {[%emt 00:00:05]} a6 {[%clk 00:00:19]} 38. c4 {[%clk
00:01:23]} {[%emt 00:00:01]} axb5 {[%clk 00:00:10]} {[%emt 00:00:14]} 39. cxb5
{[%clk 00:01:27]} {[%emt 00:00:01]} Rb3 {[%clk 00:00:11]} {[%emt 00:00:04]} 40.
Red1 {[%clk 00:01:24]} {[%emt 00:00:08]} Ke7 {[%clk 00:00:09]} {[%emt
00:00:08]} 41. Rb1 {[%clk 00:01:00]} {[%emt 00:00:29]} Rc3 {[%clk 00:00:08]}
{[%emt 00:00:04]} 42. Rbc1 {[%clk 00:01:00]} {[%emt 00:00:06]} Rb3 {[%clk
00:00:12]} 43. Rd7+ {[%clk 00:01:04]} {[%emt 00:00:01]} Kf6 {[%clk 00:00:16]}
{[%emt 00:00:01]} 44. Rdd1 {[%clk 00:01:03]} {[%emt 00:00:06]} h5 {[%clk
00:00:11]} {[%emt 00:00:10]} 45. Bd5 {[%clk 00:00:50]} {[%emt 00:00:18]} Rxc1
{[%clk 00:00:12]} {[%emt 00:00:04]} 46. Bxb3 {[%clk 00:00:55]} {[%emt
00:00:01]} Rc5 {[%clk 00:00:11]} {[%emt 00:00:05]} 47. Ba4 {[%clk 00:00:45]}
{[%emt 00:00:15]} Rc4 {[%clk 00:00:15]} {[%emt 00:00:01]} 48. Ra1 {[%clk
00:00:35]} {[%emt 00:00:14]} Rb4 {[%clk 00:00:18]} {[%emt 00:00:02]} 49. Kf3
{[%clk 00:00:30]} {[%emt 00:00:10]} Ke5 {[%clk 00:00:12]} {[%emt 00:00:11]} 50.
Re1+ {[%clk 00:00:31]} {[%emt 00:00:04]} Kd5 {[%clk 00:00:13]} {[%emt
00:00:04]} 51. Ra1 {[%clk 00:00:29]} {[%emt 00:00:07]} Kc5 {[%clk 00:00:15]}
{[%emt 00:00:03]} 52. Kg2 {[%clk 00:00:28]} {[%emt 00:00:05]} g5 {[%clk
00:00:08]} {[%emt 00:00:13]} 53. Bd1 {[%clk 00:00:18]} {[%emt 00:00:15]} Rxb5
{[%clk 00:00:07]} {[%emt 00:00:06]} 54. Bxh5 {[%clk 00:00:21]} {[%emt
00:00:02]} Kd4 {[%clk 00:00:11]} {[%emt 00:00:01]} 55. Bxf7 {[%clk 00:00:24]}
{[%emt 00:00:02]} Rf5 {[%clk 00:00:15]} {[%emt 00:00:01]} 56. Bxe6 {[%clk
00:00:27]} {[%emt 00:00:02]} Rf6 {[%clk 00:00:17]} {[%emt 00:00:03]} 57. Bg4
{[%clk 00:00:29]} {[%emt 00:00:02]} Ke5 {[%clk 00:00:17]} {[%emt 00:00:06]} 58.
Re1+ {[%clk 00:00:33]} Kd5 {[%clk 00:00:18]} {[%emt 00:00:04]} 59. Bf3+ {[%clk
00:00:36]} {[%emt 00:00:03]} Kd6 {[%clk 00:00:21]} {[%emt 00:00:01]} 60. Ra1
{[%clk 00:00:30]} {[%emt 00:00:10]} Ke5 {[%clk 00:00:24]} {[%emt 00:00:02]} 61.
Ra5+ {[%clk 00:00:33]} {[%emt 00:00:02]} Kd4 {[%clk 00:00:28]} {[%emt
00:00:02]} 62. Rxg5 {[%emt 00:00:18]} 1-0